fUST/lending_fUST_20240330
["ID","MTS","AMOUNT","RATE_DAILY","PERIOD"]
[321028475,1711800632229,-500.0,0.00043835,4]
[321028476,1711800632240,-500.0,0.00043835,4]
[321028477,1711800632249,-500.0,0.00043835,4]
[321028478,1711800632259,-500.0,0.00043835,4]
[321028479,1711800632269,-648.37314929,0.00043835,4]
[321028480,1711800632281,-500.0,0.00043835,4]
[321028481,1711800632291,-500.0,0.00043835,4]
[321028482,1711800632301,-500.0,0.00043835,4]
[321028483,1711800632312,-500.0,0.00043835,4]
[321028484,1711800632322,-780.77,0.00043835,4]
[321028485,1711800632333,-500.0,0.00043835,4]
[321028486,1711800632344,-500.0,0.00043835,4]
[321028487,1711800632355,-500.0,0.00043835,4]
[321028488,1711800632365,-500.0,0.00043835,4]
[321028489,1711800632376,-500.0,0.00043835,4]
[321028490,1711800632386,-669.13,0.00043835,4]
[321028491,1711800632397,-500.0,0.00043835,4]
[321028492,1711800632408,-2671.11,0.00043835,4]
[321028493,1711800632419,-500.0,0.00043835,4]
[321028494,1711800632432,-500.0,0.00043835,4]
[321028495,1711800632443,-500.0,0.00043835,4]
[321028496,1711800632454,-445.904166,0.00043835,4]
[321028497,1711800632469,-384.36221524,0.00043835,4]
[321028498,1711800632479,-500.0,0.00043835,4]
[321028499,1711800632490,-500.0,0.00043835,4]
[321028500,1711800632504,-500.0,0.00043835,4]
[321028501,1711800632515,-500.0,0.00043835,4]
[321028502,1711800632527,-500.0,0.00043835,4]
[321028503,1711800632539,-500.0,0.00043835,4]
[321028504,1711800632550,-318.57752913,0.00043835,4]
[321028505,1711800632561,-503.68648156,0.00043835,4]
[321028506,1711800632572,-500.0,0.00043835,4]
[321028507,1711800632582,-500.0,0.00043835,4]
[321028508,1711800632593,-500.0,0.00043835,4]
[321028509,1711800632603,-500.0,0.00043835,4]
[321028510,1711800632613,-500.0,0.00043835,4]
[321028511,1711800632623,-500.0,0.00043835,4]
[321028512,1711800632633,-514.22,0.00043835,4]
[321028513,1711800632643,-500.0,0.00043835,4]
[321028514,1711800632652,-500.0,0.00043835,4]
[321028515,1711800632662,-500.0,0.00043835,4]
[321028516,1711800632671,-500.0,0.00043835,4]
[321028517,1711800632682,-485.789843,0.00043835,4]
[321028518,1711800632692,-500.0,0.00043835,4]
[321028519,1711800632701,-500.0,0.00043835,4]
[321028520,1711800632711,-500.0,0.00043835,4]
[321028521,1711800632721,-500.0,0.00043835,4]
[321028522,1711800632732,-500.0,0.00043835,4]
[321028523,1711800632743,-1887.36,0.00043835,2]
[321028524,1711800632754,-500.0,0.00043835,4]
[321028525,1711800632764,-500.0,0.00043835,4]
[321028526,1711800632775,-500.0,0.00043835,4]
[321028527,1711800632785,-500.0,0.00043835,4]
[321028528,1711800632795,-500.0,0.00043835,4]
[321028529,1711800632804,-238.31422875,0.00043835,4]
[321028530,1711800632814,-500.0,0.00043835,4]
[321028531,1711800632823,-500.0,0.00043835,4]
[321028532,1711800632837,-500.0,0.00043835,4]
[321028533,1711800632848,-500.0,0.00043835,4]
[321028534,1711800632858,-511.65547637,0.00043835,4]
[321028535,1711800632868,-500.0,0.00043835,4]
[321028536,1711800632878,-502.55687801,0.00043835,4]
[321028537,1711800632888,-500.0,0.00043835,4]
[321028538,1711800632898,-750.42,0.00043835,4]
[321028539,1711800632908,-502.25509446,0.00043835,4]
[321028540,1711800632918,-158.72599783,0.00043835,4]
[321028541,1711800632930,-500.0,0.00043835,4]
[321028542,1711800632940,-500.0,0.00043835,4]
[321028543,1711800632950,-500.0,0.00043835,4]
[321028544,1711800632960,-504.88828958,0.00043835,4]
[321028545,1711800632970,-292.52351425,0.00043835,4]
[321028546,1711800632979,-500.0,0.00043835,4]
[321028547,1711800632990,-500.0,0.00043835,4]
[321028548,1711800633060,-1230.49,0.00043835,4]
[321028549,1711800633071,-500.0,0.00043835,4]
[321028550,1711800633080,-500.0,0.00043835,4]
[321028551,1711800633090,-500.0,0.00043835,4]
[321028552,1711800633101,-291.82889165,0.00043835,4]
[321028553,1711800633117,-89.75334267,0.00043835,4]
[321028554,1711800633128,-502.72582236,0.00043835,4]
[321028555,1711800633137,-90.37022518,0.00043835,4]
[321028587,1711800640631,-409.62977482,0.00043835,4]
[321028588,1711800640641,-500.0,0.00043835,4]
[321028589,1711800640651,-500.0,0.00043835,4]
[321028590,1711800640660,-500.0,0.00043835,4]
[321028591,1711800640670,-501.31572628,0.00043835,4]
[321028592,1711800640679,-500.0,0.00043835,4]
[321028593,1711800640690,-494.06692932,0.00043835,4]
[321028594,1711800640700,-500.0,0.00043835,4]
[321028595,1711800640710,-48.82153727,0.00043835,4]
[321028657,1711800643203,-181.42401461,0.00043835,4]
[321028659,1711800643213,-500.0,0.00043835,4]
[321028660,1711800643222,-500.0,0.00043835,4]
[321028661,1711800643231,-783.85,0.00043835,4]
[321028662,1711800643241,-500.0,0.00043835,4]
[321028663,1711800643251,-535.82411574,0.00043835,4]
[321028664,1711800643261,-374.35402965,0.00043835,4]
[321028700,1711800646059,-30.93331819,0.00043835,4]
[321028701,1711800646068,-80.13411595,0.00043835,4]
[321028705,1711801404832,1003.49,0.00040687,4]
[321028714,1711801652280,-250.84881624,0.00040686,4]
[321028715,1711801652305,-88.51901015,0.00040687,2]
[321028840,1711801843367,-75.36689615,0.00040687,2]
[321028841,1711801843377,-803.25288155,0.00041919,4]
[321028842,1711801843386,-166.666666,0.0004192,2]
[321028843,1711801843396,-179.057674,0.00042815,2]
[321028844,1711801843405,-166.666666,0.00043063,2]
[321028845,1711801843414,-1000.0,0.00043735,2]
[321028846,1711801843423,-155.17995526,0.00043833,4]
[321028847,1711801843433,-270.88498109,0.00043833,4]
[321028848,1711801843442,-842.2388313,0.00043834,4]
[321028849,1711801843451,-201.89060011,0.00043834,31]
[321028850,1711801843460,-500.0,0.00043834,31]
[321028851,1711801843469,-550.0,0.00043834,5]
[321028852,1711801843478,-376.94320435,0.00043835,4]
[321028853,1711801843488,-500.0,0.00043835,4]
[321028854,1711801843497,-500.0,0.00043835,4]
[321028855,1711801843506,-500.0,0.00043835,4]
[321028856,1711801843515,-500.0,0.00043835,4]
[321028857,1711801843525,-500.0,0.00043835,4]
[321028858,1711801843534,-153.2380415,0.00043835,4]
[321028859,1711801843544,-306.81355037,0.00043835,4]
[321028860,1711801843554,-500.0,0.00043835,4]
[321028861,1711801843563,-500.0,0.00043835,4]
[321028862,1711801843573,-1808.72,0.00043835,2]
[321028863,1711801843582,-500.0,0.00043835,4]
[321028864,1711801843591,-500.0,0.00043835,4]
[321028865,1711801843601,-500.0,0.00043835,4]
[321028866,1711801843610,-500.0,0.00043835,4]
[321028867,1711801843619,-374.02070717,0.00043835,4]
[321028868,1711801843628,-500.0,0.00043835,4]
[321028869,1711801843638,-500.0,0.00043835,4]
[321028870,1711801843647,-719.15,0.00043835,4]
[321028871,1711801843656,-510.93215883,0.00043835,4]
[321028872,1711801843665,-500.0,0.00043835,4]
[321028873,1711801843675,-500.0,0.00043835,4]
[321028874,1711801843685,-500.0,0.00043835,4]
[321028875,1711801843694,-500.0,0.00043835,4]
[321028876,1711801843704,-500.0,0.00043835,4]
[321028877,1711801843713,-500.0,0.00043835,4]
[321028878,1711801843723,-500.0,0.00043835,4]
[321028879,1711801843732,-500.0,0.00043835,4]
[321028880,1711801843742,-500.0,0.00043835,4]
[321028881,1711801843751,-504.6673309,0.00043835,4]
[321028882,1711801843761,-500.0,0.00043835,4]
[321028883,1711801843770,-500.0,0.00043835,4]
[321028884,1711801843780,-500.0,0.00043835,4]
[321028885,1711801843791,-500.0,0.00043835,4]
[321028886,1711801843801,-500.0,0.00043835,4]
[321028887,1711801843811,-500.0,0.00043835,4]
[321028888,1711801843820,-500.0,0.00043835,4]
[321028889,1711801843830,-1179.22,0.00043835,4]
[321028890,1711801843840,-500.0,0.00043835,4]
[321028891,1711801843851,-751.19,0.00043835,4]
[321028892,1711801843860,-1030.52256613,0.00043835,14]
[321028893,1711801843870,-500.0,0.00043835,4]
[321028894,1711801843881,-500.0,0.00043835,4]
[321028895,1711801843891,-500.0,0.00043835,4]
[321028896,1711801843901,-497.79311763,0.00043835,4]
[321028897,1711801843910,-501.76111315,0.00043835,4]
[321028898,1711801843919,-500.0,0.00043835,4]
[321028899,1711801843928,-500.0,0.00043835,4]
[321028900,1711801843937,-500.0,0.00043835,4]
[321028901,1711801843946,-500.0,0.00043835,4]
[321028902,1711801843955,-500.0,0.00043835,4]
[321028903,1711801843975,-500.0,0.00043835,4]
[321028904,1711801843987,-500.0,0.00043835,4]
[321028905,1711801843996,-500.0,0.00043835,4]
[321028906,1711801844006,-500.0,0.00043835,4]
[321028907,1711801844016,-500.0,0.00043835,4]
[321028908,1711801844026,-500.0,0.00043835,4]
[321028909,1711801844037,-500.0,0.00043835,4]
[321028910,1711801844046,-500.0,0.00043835,4]
[321028911,1711801844056,-500.0,0.00043835,4]
[321028912,1711801844066,-500.0,0.00043835,4]
[321028913,1711801844075,-500.0,0.00043835,4]
[321028914,1711801844085,-500.0,0.00043835,4]
[321028915,1711801844095,-500.0,0.00043835,4]
[321028916,1711801844105,-500.0,0.00043835,4]
[321028917,1711801844115,-393.38221705,0.00043835,4]
[321028918,1711801844134,-106.61778295,0.00043835,4]
[321028919,1711801844144,-500.0,0.00043835,4]
[321028920,1711801844154,-500.0,0.00043835,4]
[321028921,1711801844164,-500.0,0.00043835,4]
[321028922,1711801844173,-500.0,0.00043835,4]
[321028923,1711801844183,-500.0,0.00043835,4]
[321028924,1711801844193,-500.0,0.00043835,4]
[321028925,1711801844202,-355.98835037,0.00043835,4]
[321028926,1711801844212,-157.30963222,0.00043835,4]
[321028927,1711801844222,-500.0,0.00043835,4]
[321028928,1711801844231,-533.44967644,0.00043835,4]
[321028929,1711801844241,-500.0,0.00043835,4]
[321028930,1711801844251,-500.0,0.00043835,4]
[321028931,1711801844261,-500.0,0.00043835,4]
[321028932,1711801844271,-500.0,0.00043835,4]
[321028933,1711801844280,-500.0,0.00043835,4]
[321028934,1711801844291,-1000.0,0.00043835,4]
[321028935,1711801844301,-500.0,0.00043835,4]
[321028936,1711801844311,-500.0,0.00043835,4]
[321028937,1711801844321,-500.0,0.00043835,4]
[321028938,1711801844331,-500.0,0.00043835,4]
[321028939,1711801844341,-500.0,0.00043835,4]
[321028940,1711801844351,-500.0,0.00043835,4]
[321028941,1711801844361,-500.0,0.00043835,4]
[321028942,1711801844371,-500.0,0.00043835,4]
[321028943,1711801844381,-500.0,0.00043835,4]
[321028944,1711801844391,-589.71,0.00043835,4]
[321028945,1711801844402,-503.68211962,0.00043835,4]
[321028946,1711801844412,-500.0,0.00043835,4]
[321028947,1711801844422,-500.0,0.00043835,4]
[321028948,1711801844431,-500.0,0.00043835,4]
[321028949,1711801844440,-599.29024456,0.00043835,4]
[321028950,1711801844451,-500.0,0.00043835,4]
[321028951,1711801844460,-500.0,0.00043835,4]
[321028952,1711801844470,-500.0,0.00043835,4]
[321028953,1711801844479,-253.77017376,0.00043835,4]
[321029387,1711803040973,-166.666666,0.00041485,2]
[321029389,1711803040983,-803.25288155,0.00041526,4]
[321029391,1711803040993,-791.60902878,0.0004208,4]
[321029393,1711803041003,-179.057674,0.00042157,2]
[321029395,1711803041012,-1825.1900719,0.00042243,2]
[321029397,1711803041022,-373.679475,0.00042247,120]
[321029399,1711803041031,-166.666666,0.00042616,2]
[321029401,1711803041040,-550.0,0.00042726,5]
[321029403,1711803041049,-8221.9832871,0.00042727,4]
[321029405,1711803041058,-157.14442901,0.00043692,11]
[321029407,1711803041068,-640.50976179,0.00043734,2]
[321029409,1711803041077,-166.666666,0.00043747,2]
[321029411,1711803041086,-3390.52674176,0.0004379,15]
[321029654,1711803043564,-3248.93110878,0.0004379,15]
[321033559,1711804243788,-803.25288155,0.00040689,4]
[321033562,1711804243806,-550.0,0.00040689,5]
[321033565,1711804243820,-10000.0,0.0004069,2]
[321033568,1711804243837,-4710.34,0.0004069,2]
[321033570,1711804243852,-1499.98486075,0.0004075,2]
[321033573,1711804243867,-186.251981,0.00041106,2]
[321033577,1711804243896,-280.259606,0.00041846,120]
[321033581,1711804243925,-152.094495,0.00041948,30]
[321033585,1711804243946,-176.869244,0.00041948,30]
[321033587,1711804243962,-1000.0,0.00042,30]
[321033590,1711804243974,-186.251981,0.00042973,2]
[321033592,1711804243990,-500.0,0.00042999,120]
[321033595,1711804244006,-500.0,0.00042999,120]
[321033598,1711804244020,-500.0,0.00042999,120]
[321033600,1711804244034,-500.0,0.00042999,120]
[321033604,1711804244058,-362.82,0.00042999,120]
[321033607,1711804244076,-770.0,0.0004337,5]
[321033609,1711804244092,-306.0,0.00043452,2]
[321033612,1711804244107,-34824.15645743,0.000437,2]
[321034893,1711805230234,-339.36782639,0.00040748,4]
[321034951,1711805432737,-803.25288155,0.00040744,4]
[321034953,1711805432747,-3144.0,0.00040745,30]
[321034956,1711805432756,-209.0,0.00040749,2]
[321034958,1711805432766,-186.251981,0.00041908,2]
[321034959,1711805432776,-210.194704,0.00042633,120]
[321034960,1711805432785,-201809.98807886,0.000437,2]
[321035131,1711806631927,-288.74163636,0.00040729,2]
[321035132,1711806631937,-20000.0,0.0004073,2]
[321035133,1711806631946,-156.83601458,0.00040748,4]
[321035134,1711806631956,-186.251981,0.0004126,2]
[321035135,1711806631965,-157.646028,0.00041908,120]
[321035136,1711806631974,-3229.58136943,0.00042895,4]
[321035693,1711806643263,-1562.60502837,0.00042895,4]
[321035696,1711806643279,-550.0,0.00042896,5]
[321035698,1711806643289,-12870.7018896,0.00042897,4]
[321035700,1711806643298,-166.52254878,0.00042899,2]
[321035702,1711806643307,-166.52254878,0.00042968,2]
[321035704,1711806643316,-500.0,0.00042996,4]
[321035705,1711806643325,-500.0,0.00042996,4]
[321035707,1711806643335,-206.90646323,0.00042997,4]
[321035710,1711806643345,-155.84034179,0.00042997,4]
[321035711,1711806643354,-350.76894668,0.00042997,4]
[321035713,1711806643363,-433.80651329,0.00042997,4]
[321035715,1711806643373,-498.94477108,0.00042997,2]
[321035718,1711806643383,-256.33278647,0.00042997,4]
[321035720,1711806643393,-283.63401118,0.00042997,7]
[321035722,1711806643402,-500.0,0.00042998,4]
[321035723,1711806643411,-500.0,0.00042998,4]
[321035726,1711806643421,-176.26158679,0.00042998,30]
[321035727,1711806643430,-360.41338422,0.00042998,4]
[321035729,1711806643439,-2611.85,0.00042998,4]
[321035740,1711806643522,-470.22795257,0.00042998,31]
[321035742,1711806643532,-500.0,0.00042998,31]
[321035744,1711806643542,-246.45633341,0.00042998,31]
[321035746,1711806643551,-500.0,0.00042998,31]
[321035748,1711806643560,-500.0,0.00042998,31]
[321035750,1711806643569,-500.0,0.00042998,31]
[321035752,1711806643578,-500.0,0.00042998,31]
[321035754,1711806643589,-407.7671963,0.00042998,31]
[321038929,1711807752166,-579.37999377,0.00037698,7]
[321038930,1711807752186,-1608.85869543,0.00037795,4]
[321038932,1711807772228,-252.64893181,0.00037794,2]
[321038933,1711807772250,-5005.27295707,0.00037794,4]
[321038934,1711807772272,-154.95351395,0.00037794,4]
[321038935,1711807772293,-2584.30440264,0.00037795,4]
[321038936,1711807772315,-400.0,0.00037795,3]
[321038937,1711807772337,-5005.27295707,0.00037796,4]
[321038938,1711807772358,-4830.58235208,0.00037796,4]
[321039010,1711807838226,-5171.44670874,0.00037418,2]
[321039011,1711807838235,-174.69060499,0.00037796,4]
[321039012,1711807838244,-421.21101875,0.00037796,2]
[321039013,1711807838253,-515.73759495,0.00037796,4]
[321039014,1711807838262,-154.95351395,0.00037796,4]
[321039015,1711807838271,-19056.74235758,0.00037796,60]
[321039016,1711807838281,-610.0,0.00038,14]
[321039017,1711807838290,-245.099082,0.00038815,120]
[321039018,1711807838299,-263.20382126,0.000402,7]
[321039019,1711807838308,-184.51505666,0.00040412,2]
[321039020,1711807838318,-184.51505664,0.00040534,2]
[321039021,1711807838327,-184.51505664,0.00040656,2]
[321039022,1711807838336,-184.51505664,0.00040777,2]
[321039023,1711807838346,-184.51505664,0.00040899,2]
[321039024,1711807838356,-311.16396203,0.00040997,4]
[321039025,1711807838365,-1014.65050413,0.00040997,4]
[321039026,1711807838373,-281.86400413,0.00040997,2]
[321039027,1711807838382,-550.0,0.00040997,5]
[321039028,1711807838391,-1092.29,0.00040998,4]
[321039029,1711807838400,-5140.33,0.00040998,4]
[321039030,1711807838412,-500.0,0.00040998,4]
[321039031,1711807838421,-500.0,0.00040998,4]
[321039032,1711807838429,-500.0,0.00040998,4]
[321039033,1711807838438,-1524.37,0.00040998,4]
[321039034,1711807838447,-2535.77,0.00040998,4]
[321039035,1711807838456,-500.0,0.00040998,4]
[321039036,1711807838465,-3007.55,0.00040998,4]
[321039037,1711807838474,-2523.86,0.00040998,4]
[321039038,1711807838482,-500.0,0.00040998,4]
[321039039,1711807838491,-309.81704778,0.00040999,4]
[321039040,1711807838500,-500.0,0.00040999,4]
[321039041,1711807838508,-500.0,0.00040999,4]
[321039042,1711807838517,-450.37319255,0.00040999,4]
[321039043,1711807838526,-502.74290838,0.00040999,4]
[321039044,1711807838536,-500.0,0.00040999,4]
[321039045,1711807838545,-500.0,0.00040999,4]
[321039046,1711807838554,-500.0,0.00040999,4]
[321039047,1711807838565,-517.28182246,0.00040999,4]
[321039048,1711807838573,-500.0,0.00040999,4]
[321039049,1711807838583,-500.0,0.00040999,4]
[321039050,1711807838592,-420.44178186,0.00040999,4]
[321039068,1711807843382,-339.98468164,0.00040998,4]
[321039069,1711807843392,-79.55821814,0.00040999,4]
[321039070,1711807843401,-500.0,0.00040999,4]
[321039071,1711807843411,-500.0,0.00040999,4]
[321039072,1711807843420,-500.0,0.00040999,4]
[321039073,1711807843430,-838.2,0.00040999,4]
[321039074,1711807843439,-500.0,0.00040999,4]
[321039075,1711807843449,-500.0,0.00040999,4]
[321039076,1711807843458,-500.0,0.00040999,4]
[321039077,1711807843476,-617.80357896,0.00040999,4]
[321039078,1711807843489,-500.0,0.00040999,4]
[321039079,1711807843498,-500.0,0.00040999,4]
[321039080,1711807843508,-500.0,0.00040999,4]
[321039081,1711807843518,-506.27042509,0.00040999,4]
[321039082,1711807843527,-500.0,0.00040999,4]
[321039083,1711807843537,-500.0,0.00040999,4]
[321039084,1711807843547,-500.0,0.00040999,4]
[321039085,1711807843559,-500.0,0.00040999,4]
[321039086,1711807843569,-500.0,0.00040999,4]
[321039087,1711807843579,-500.0,0.00040999,4]
[321039088,1711807843588,-216.18589744,0.00040999,4]
[321039089,1711807843599,-500.0,0.00040999,4]
[321039090,1711807843609,-500.0,0.00040999,4]
[321039091,1711807843619,-273.7702853,0.00040999,4]
[321039092,1711807843629,-500.0,0.00040999,4]
[321039093,1711807843641,-500.0,0.00040999,4]
[321039094,1711807843654,-500.0,0.00040999,4]
[321039095,1711807843665,-500.0,0.00040999,4]
[321039096,1711807843674,-500.0,0.00040999,4]
[321039097,1711807843684,-500.0,0.00040999,4]
[321039098,1711807843694,-367.12255616,0.00040999,4]
[321039099,1711807843704,-500.0,0.00040999,4]
[321039100,1711807843715,-500.0,0.00040999,4]
[321039101,1711807843726,-500.0,0.00040999,4]
[321039102,1711807843736,-675.15,0.00040999,4]
[321039103,1711807843745,-761.13,0.00040999,4]
[321039104,1711807843754,-1052.37,0.00040999,4]
[321039105,1711807843764,-500.0,0.00040999,4]
[321039106,1711807843774,-500.0,0.00040999,4]
[321039107,1711807843784,-500.0,0.00040999,4]
[321039108,1711807843793,-503.26871685,0.00040999,4]
[321039109,1711807843803,-681.49,0.00040999,4]
[321039110,1711807843812,-500.0,0.00040999,4]
[321039111,1711807843822,-500.0,0.00040999,4]
[321039112,1711807843831,-378.66452258,0.00040999,4]
[321039113,1711807843841,-588.79,0.00040999,4]
[321039114,1711807843850,-500.0,0.00040999,4]
[321039115,1711807843860,-723.86,0.00040999,4]
[321039116,1711807843869,-502.3328274,0.00040999,4]
[321039117,1711807843878,-502.25903148,0.00040999,4]
[321039118,1711807843888,-189.02264065,0.00040999,4]
[321039119,1711807843897,-647.58505904,0.00040999,4]
[321039120,1711807843907,-500.0,0.00040999,4]
[321039121,1711807843917,-501.13814938,0.00040999,4]
[321039122,1711807843926,-500.0,0.00040999,4]
[321039123,1711807843935,-500.0,0.00040999,4]
[321039124,1711807843945,-502.95448203,0.00040999,4]
[321039125,1711807843954,-206.4467443,0.00040999,4]
[321039126,1711807843963,-499.22980922,0.00040999,4]
[321039127,1711807843972,-151.0,0.00040999,4]
[321039128,1711807843983,-711.53,0.00040999,4]
[321039129,1711807843993,-500.0,0.00040999,4]
[321039130,1711807844002,-500.0,0.00040999,4]
[321039131,1711807844012,-500.0,0.00040999,4]
[321039132,1711807844021,-500.0,0.00040999,4]
[321039133,1711807844031,-500.0,0.00040999,4]
[321039134,1711807844041,-500.0,0.00040999,4]
[321039135,1711807844050,-503.18711864,0.00040999,4]
[321039136,1711807844059,-500.0,0.00040999,4]
[321039137,1711807844068,-500.0,0.00040999,4]
[321039138,1711807844078,-500.0,0.00040999,4]
[321039139,1711807844087,-502.19148715,0.00040999,4]
[321039140,1711807844096,-501.8418935,0.00040999,4]
[321039141,1711807844106,-500.0,0.00040999,4]
[321039142,1711807844115,-500.0,0.00040999,4]
[321039143,1711807844125,-500.0,0.00040999,4]
[321039144,1711807844135,-500.0,0.00040999,4]
[321039145,1711807844146,-396.66502187,0.00040999,4]
[321039146,1711807844158,-171.07416498,0.00040999,4]
[321039147,1711807844167,-500.0,0.00040999,4]
[321039148,1711807844177,-500.0,0.00040999,4]
[321039149,1711807844186,-500.0,0.00040999,4]
[321039150,1711807844196,-4088.59,0.00040999,4]
[321039151,1711807844206,-500.0,0.00040999,4]
[321039152,1711807844215,-502.12769212,0.00040999,4]
[321039153,1711807844224,-500.0,0.00040999,4]
[321039154,1711807844233,-132.73887101,0.00040999,4]
[321039217,1711808847145,-339.36782639,0.00039895,4]
[321039391,1711809038439,-9.82768685,0.00037794,4]
[321039412,1711809077500,-183.824311,0.00039583,120]
[321039413,1711809080570,-695.05669026,0.00037792,2]
[321039414,1711809080593,-753.51860148,0.00037793,4]
[321039415,1711809080617,-3740.52197633,0.00037793,4]
[321039416,1711809083664,-1264.75098074,0.00037793,4]
[321039417,1711809083705,-693.01858451,0.00037794,4]
[321039418,1711809083749,-170.10655473,0.00037794,4]
[321039419,1711809083794,-154.95351395,0.00037794,4]
[321039420,1711809083833,-154.95351395,0.00037794,4]
[321039421,1711809083874,-603.90346636,0.00038943,4]
[321039422,1711809083910,-2147.41065383,0.00039,5]
[321039423,1711809086509,-5189.09726807,0.00039,5]
[321039424,1711809097293,-154.95351395,0.00037794,2]
[321039425,1711809097318,-194.78111089,0.00037795,2]
[321039426,1711809103656,-922.79317387,0.00037793,4]
[321039427,1711809103679,-545.99806099,0.00037793,4]
[321039428,1711809103702,-219.90859586,0.00037794,4]
[321039429,1711809107535,831.2925009,0.00037792,4]
[321039430,1711809114422,154.95351395,0.00037794,2]
[321039431,1711809122823,-359.08611514,0.00038998,2]
[321039432,1711809122846,-242.44513619,0.00038999,4]
[321039433,1711809122869,-1469.42360484,0.00039,5]
[321039434,1711809135219,154.95351395,0.00037794,2]
[321039435,1711809153206,154.95351395,0.00037794,2]
[321039436,1711809171209,154.95351395,0.00037794,2]
[321039437,1711809189215,154.95351395,0.00037794,2]
[321039438,1711809192662,-164.67288217,0.00039895,2]
[321039439,1711809192686,-225.3316458,0.00039895,2]
[321039440,1711809195283,359.08611514,0.00039894,2]
[321039441,1711809205348,160.17426903,0.00037794,2]
[321039442,1711809219993,2990.73961583,0.00039743,2]
[321039443,1711809260527,609.01369584,0.00037643,2]
[321039444,1711809336637,-359.08611514,0.00039741,2]
[321039445,1711809336661,-400.0,0.00039742,5]
[321039446,1711809336683,-5005.27295707,0.00039742,4]
[321039447,1711809336707,-5657.65774087,0.00039743,2]
[321039448,1711809601962,-406.00913056,0.00037643,2]
[321039449,1711809601988,-269.778915,0.00039798,120]
[321039450,1711809618582,171.725384,0.00039388,2]
[321039451,1711809716781,537.3546769,0.00039576,2]
[321039452,1711809760491,421.21101875,0.00039388,2]
[321039453,1711809776447,410.17053202,0.00039388,2]
[321039454,1711809800463,313.14814238,0.00039388,2]
[321039455,1711809816449,80.38111539,0.00039388,2]
[321039456,1711809865764,202.334186,0.00039517,120]
[321039457,1711810065048,4986.76308207,0.00039517,120]
[321039458,1711810158120,-180.81118799,0.00037642,4]
[321039459,1711810158141,-270.6727537,0.00037643,2]
[321039460,1711810158161,-342.58215805,0.00039388,2]
[321039515,1711810232547,-379.08521324,0.00037643,2]
[321039517,1711810232557,-28.68563815,0.00039388,2]
[321039519,1711810232567,-698.57319795,0.00039516,4]
[321039592,1711810238614,-4306.69975912,0.00039516,4]
[321039593,1711810238625,-400.0,0.00039516,5]
[321039594,1711810238635,-4954.37955997,0.00039517,120]
[321039595,1711810238646,-7342.3877118,0.00039795,2]
[321039596,1711810238659,-153.0,0.000398,2]
[321039597,1711810238669,-306.0,0.000398,2]
[321039598,1711810238680,-153.0,0.000398,2]
[321039599,1711810238691,-202.1506933,0.000398,2]
[321039600,1711810238703,-241.8104438,0.00039855,2]
[321039602,1711810238714,-243.4725241,0.0004,4]
[321039604,1711810238727,-169.230769,0.0004,2]
[321039605,1711810238737,-175.641067,0.0004,2]
[321039606,1711810238747,-195.3865003,0.00040256,2]
[321039607,1711810238757,-158.87149199,0.00040256,9]
[321039608,1711810238767,-300.0,0.000403,15]
[321039609,1711810238776,-153.0,0.00040356,2]
[321039611,1711810238787,-202.1506933,0.00040356,2]
[321039613,1711810238797,-202.1506933,0.00040356,2]
[321039615,1711810238806,-153.0,0.00040356,2]
[321039616,1711810238815,-153.0,0.00040356,2]